fUSD/lending_fUSD_20250209
["ID","MTS","AMOUNT","RATE_DAILY","PERIOD"]
[352480874,1739134258655,-500.0,0.00010409,2]
[352480875,1739134258664,-663.71,0.00010409,2]
[352480876,1739134258673,-500.0,0.00010409,2]
[352480877,1739134258683,-567.6159612,0.00010409,2]
[352480878,1739134258692,-673.8,0.00010409,2]
[352480879,1739134258702,-500.0,0.00010409,2]
[352480880,1739134258711,-699.27,0.00010409,2]
[352480881,1739134258720,-974.55,0.00010409,2]
[352480882,1739134258730,-500.0,0.00010409,2]
[352480883,1739134258739,-500.0,0.00010409,2]
[352480884,1739134258749,-500.0,0.00010409,2]
[352480885,1739134258758,-1051.01,0.00010409,2]
[352480886,1739134258767,-1000.0,0.00010409,2]
[352480887,1739134258776,-500.0,0.00010409,2]
[352480888,1739134258785,-500.0,0.00010409,2]
[352480889,1739134258794,-500.0,0.00010409,2]
[352480890,1739134258804,-726.4,0.00010409,2]
[352480891,1739134258813,-500.0,0.00010409,2]
[352480892,1739134258823,-500.0,0.00010409,2]
[352480893,1739134258832,-671.52,0.00010409,2]
[352480894,1739134258957,-503.80657696,0.00010409,2]
[352480895,1739134258993,-500.0,0.00010409,2]
[352480896,1739134259003,-500.0,0.00010409,2]
[352480897,1739134259012,-1306.57,0.00010409,2]
[352480898,1739134259021,-500.0,0.00010409,2]
[352480899,1739134259031,-591.07,0.00010409,2]
[352480900,1739134259040,-500.0,0.00010409,2]
[352480901,1739134259050,-500.0,0.00010409,2]
[352480902,1739134259059,-500.0,0.00010409,2]
[352480903,1739134259068,-500.0,0.00010409,2]
[352480904,1739134259078,-254.17,0.00010409,2]
[352480905,1739134259088,-640.63,0.00010409,2]
[352480906,1739134259097,-500.0,0.00010409,2]
[352480907,1739134259106,-500.0,0.00010409,2]
[352480908,1739134259115,-500.0,0.00010409,2]
[352480909,1739134259125,-500.0,0.00010409,2]
[352480910,1739134259135,-500.0,0.00010409,2]
[352480911,1739134259145,-500.0,0.00010409,2]
[352480912,1739134259155,-500.0,0.00010409,2]
[352480913,1739134259165,-573.12,0.00010409,2]
[352480914,1739134259175,-500.0,0.00010409,2]
[352480915,1739134259185,-500.0,0.00010409,2]
[352480916,1739134259196,-500.0,0.00010409,2]
[352480917,1739134259207,-500.0,0.00010409,2]
[352480918,1739134259217,-500.0,0.00010409,2]
[352480919,1739134259230,-342.38099946,0.00010409,2]
[352480920,1739134259240,-500.0,0.00010409,2]
[352480921,1739134259250,-215.56,0.00010409,2]
[352480922,1739134259260,-500.0,0.00010409,2]
[352480923,1739134259270,-500.0,0.00010409,2]
[352480924,1739134259280,-500.0,0.00010409,2]
[352480925,1739134259290,-500.0,0.00010409,2]
[352480926,1739134259299,-500.0,0.00010409,2]
[352480927,1739134259309,-500.0,0.00010409,2]
[352480928,1739134259319,-500.0,0.00010409,2]
[352480929,1739134259328,-500.0,0.00010409,2]
[352480930,1739134259338,-500.0,0.00010409,2]
[352480931,1739134259347,-500.0,0.00010409,2]
[352480932,1739134259357,-616.73,0.00010409,2]
[352480933,1739134259367,-500.0,0.00010409,2]
[352480934,1739134259376,-500.0,0.00010409,2]
[352480935,1739134259386,-635.9,0.00010409,2]
[352480936,1739134259396,-500.0,0.00010409,2]
[352480937,1739134259405,-500.0,0.00010409,2]
[352480938,1739134259415,-500.0,0.00010409,2]
[352480939,1739134259424,-500.0,0.00010409,2]
[352480940,1739134259434,-544.57,0.00010409,2]
[352480941,1739134259443,-500.0,0.00010409,2]
[352480942,1739134259453,-500.0,0.00010409,2]
[352480943,1739134259463,-500.0,0.00010409,2]
[352480944,1739134259476,-500.0,0.00010409,2]
[352480945,1739134259486,-500.0,0.00010409,2]
[352480946,1739134259496,-500.0,0.00010409,2]
[352480947,1739134259506,-500.0,0.00010409,2]
[352480948,1739134259515,-691.26,0.00010409,2]
[352480949,1739134259525,-500.0,0.00010409,2]
[352480950,1739134259535,-500.0,0.00010409,2]
[352480951,1739134259545,-500.0,0.00010409,2]
[352480952,1739134259554,-2376.59,0.00010409,2]
[352480953,1739134259564,-783.79,0.00010409,2]
[352480954,1739134259573,-500.0,0.00010409,2]
[352480955,1739134259583,-500.0,0.00010409,2]
[352480956,1739134259592,-500.0,0.00010409,2]
[352480957,1739134259603,-500.0,0.00010409,2]
[352480958,1739134259612,-500.0,0.00010409,2]
[352480959,1739134259623,-500.0,0.00010409,2]
[352480960,1739134259632,-500.0,0.00010409,2]
[352480961,1739134259642,-500.0,0.00010409,2]
[352480962,1739134259652,-500.0,0.00010409,2]
[352480963,1739134259662,-500.0,0.00010409,2]
[352480964,1739134259672,-606.97,0.00010409,2]
[352480965,1739134259681,-500.0,0.00010409,2]
[352480966,1739134259692,-500.0,0.00010409,2]
[352480967,1739134259701,-500.0,0.00010409,2]
[352480968,1739134259711,-332.75,0.00010409,2]
[352480969,1739134259721,-500.0,0.00010409,2]
[352480970,1739134259730,-500.0,0.0001041,2]
[352480971,1739134259740,-500.0,0.0001041,2]
[352480972,1739134259749,-558.94625,0.0001041,2]
[352480973,1739134259760,-586.33,0.0001041,2]
[352480974,1739134259771,-551.58,0.0001041,2]
[352480975,1739134259780,-500.0,0.0001041,2]
[352480976,1739134259790,-526.68,0.0001041,2]
[352480977,1739134259799,-150.77400636,0.0001041,2]
[352480978,1739134259808,-500.0,0.0001041,2]
[352480979,1739134259817,-500.0,0.0001041,2]
[352480980,1739134259828,-500.0,0.0001041,2]
[352480981,1739134259838,-500.0,0.0001041,2]
[352480982,1739134259847,-500.0,0.0001041,2]
[352480983,1739134259857,-500.0,0.0001041,2]
[352480984,1739134259866,-500.0,0.0001041,2]
[352480985,1739134259876,-500.0,0.0001041,2]
[352480986,1739134259885,-500.0,0.0001041,2]
[352480987,1739134259894,-500.0,0.0001041,2]
[352480988,1739134259903,-620.88,0.0001041,2]
[352480989,1739134259913,-500.0,0.0001041,2]
[352480990,1739134259923,-158.97873448,0.0001041,2]
[352480991,1739134259932,-611.76,0.0001041,2]
[352480992,1739134259942,-500.0,0.0001041,2]
[352480993,1739134259952,-579.86,0.0001041,2]
[352480994,1739134259967,-500.0,0.0001041,2]
[352480995,1739134259976,-500.0,0.0001041,2]
[352480996,1739134259986,-500.0,0.0001041,2]
[352480997,1739134259996,-500.0,0.0001041,2]
[352480998,1739134260006,-500.0,0.0001041,2]
[352480999,1739134260017,-500.0,0.0001041,2]
[352481000,1739134260027,-500.0,0.0001041,2]
[352481001,1739134260037,-500.0,0.0001041,2]
[352481002,1739134260048,-500.0,0.0001041,2]
[352481003,1739134260058,-408.45,0.0001041,2]
[352481004,1739134260068,-1000.0,0.00010428,2]
[352481005,1739134260078,-1047.1035494,0.00010446,2]
[352481006,1739134260087,-814.02104817,0.00010446,2]
[352481007,1739134260096,-306.27,0.00010545,2]
[352481008,1739134260106,-500.0,0.00010545,2]
[352481009,1739134260115,-500.0,0.00010545,2]
[352481010,1739134260126,-472.58,0.00010545,2]
[352481011,1739134260136,-500.0,0.00010545,2]
[352481012,1739134260146,-488.18,0.00010545,2]
[352481013,1739134260155,-500.0,0.00010545,2]
[352481014,1739134260165,-358.49,0.00010545,2]
[352481015,1739134260174,-500.0,0.00010545,2]
[352481016,1739134260184,-237.3,0.00010545,2]
[352481017,1739134260193,-500.0,0.00010545,2]
[352481018,1739134260203,-160.49,0.00010545,2]
[352481019,1739134260212,-500.0,0.00010545,2]
[352481020,1739134260224,-330.68,0.00010545,2]
[352481021,1739134260234,-270.2,0.00010545,2]
[352481022,1739134260244,-572.82,0.00010545,2]
[352481023,1739134260255,-313.461372,0.00010545,2]
[352481024,1739134260264,-500.0,0.00010545,2]
[352481025,1739134260274,-500.0,0.00010545,2]
[352481026,1739134260283,-500.0,0.00010545,2]
[352481027,1739134260293,-500.0,0.00010545,2]
[352481028,1739134260303,-1319.722916,0.00010546,2]
[352481029,1739134260313,-581.85,0.00010546,2]
[352481030,1739134260322,-917.93,0.00010546,2]
[352481031,1739134260332,-500.0,0.00010546,2]
[352481032,1739134260341,-500.0,0.00010546,2]
[352481033,1739134260351,-692.23,0.00010546,2]
[352481034,1739134260361,-500.0,0.00010546,2]
[352481035,1739134260370,-500.0,0.00010546,2]
[352481036,1739134260380,-500.0,0.00010546,2]
[352481037,1739134260396,-500.0,0.00010546,2]
[352481038,1739134260406,-500.0,0.00010546,2]
[352481039,1739134260416,-500.0,0.00010546,2]
[352481040,1739134260425,-500.0,0.00010546,2]
[352481041,1739134260434,-500.0,0.00010546,2]
[352481042,1739134260444,-500.0,0.00010546,2]
[352481043,1739134260454,-500.0,0.00010546,2]
[352481044,1739134260463,-500.0,0.00010546,2]
[352481045,1739134260475,-500.0,0.00010546,2]
[352481046,1739134260484,-726.47,0.00010546,2]
[352481047,1739134260494,-653.23,0.00010546,2]
[352481048,1739134260504,-500.0,0.00010546,2]
[352481049,1739134260514,-500.0,0.00010546,2]
[352481050,1739134260524,-500.0,0.00010546,2]
[352481051,1739134260535,-500.0,0.00010546,2]
[352481052,1739134260544,-500.0,0.00010546,2]
[352481053,1739134260554,-500.0,0.00010546,2]
[352481054,1739134260564,-500.0,0.00010546,2]
[352481055,1739134260574,-1352.48,0.00010546,2]
[352481056,1739134260584,-529.76,0.00010546,2]
[352481057,1739134260593,-500.0,0.00010546,2]
[352481058,1739134260603,-663.71,0.00010546,2]
[352481059,1739134260613,-673.8,0.00010546,2]
[352481060,1739134260622,-699.27,0.00010546,2]
[352481061,1739134260631,-974.55,0.00010546,2]
[352481062,1739134260641,-500.0,0.00010546,2]
[352481063,1739134260650,-500.0,0.00010546,2]
[352481064,1739134260659,-1051.01,0.00010546,2]
[352481065,1739134260669,-594.22298229,0.00010546,2]
[352481066,1739134260679,-181.93261139,0.00010546,2]
[352481067,1739134260689,-500.0,0.00010546,2]
[352481068,1739134260698,-500.0,0.00010546,2]
[352481069,1739134260708,-726.4,0.00010546,2]
[352481070,1739134260717,-500.0,0.00010546,2]
[352481071,1739134260727,-500.0,0.00010546,2]
[352481072,1739134260737,-671.52,0.00010546,2]
[352481073,1739134260746,-500.0,0.00010546,2]
[352481074,1739134260756,-500.0,0.00010546,2]
[352481075,1739134260766,-1306.57,0.00010546,2]
[352481076,1739134260777,-500.0,0.00010546,2]
[352481077,1739134260787,-401.44,0.00010546,2]
[352481078,1739134260797,-591.07,0.00010546,2]
[352481079,1739134260806,-500.0,0.00010546,2]
[352481080,1739134260815,-430.6362695,0.00010546,2]
[352481081,1739134260825,-640.63,0.00010546,2]
[352481082,1739134260834,-500.0,0.00010546,2]
[352481083,1739134260843,-500.0,0.00010546,2]
[352481084,1739134260852,-623.06,0.00010546,2]
[352481085,1739134260861,-573.12,0.00010546,2]
[352481086,1739134260871,-500.0,0.00010546,2]
[352481087,1739134260880,-500.0,0.00010546,2]
[352481088,1739134260890,-500.0,0.00010546,2]
[352481089,1739134260899,-500.0,0.00010546,2]
[352481090,1739134260908,-500.0,0.00010546,2]
[352481091,1739134260918,-296.76,0.00010546,2]
[352481092,1739134260928,-500.0,0.00010546,2]
[352481093,1739134260938,-500.0,0.00010546,2]
[352481094,1739134260950,-500.0,0.00010546,2]
[352481095,1739134260963,-500.0,0.00010546,2]
[352481096,1739134260973,-500.0,0.00010546,2]
[352481097,1739134260983,-500.0,0.00010546,2]
[352481098,1739134260993,-500.0,0.00010546,2]
[352481099,1739134261003,-500.0,0.00010546,2]
[352481100,1739134261012,-691.26,0.00010546,2]
[352481101,1739134261025,-500.0,0.00010546,2]
[352481102,1739134261035,-500.0,0.00010546,2]
[352481103,1739134261045,-2376.59,0.00010546,2]
[352481104,1739134261054,-783.79,0.00010546,2]
[352481105,1739134261064,-500.0,0.00010546,2]
[352481106,1739134261075,-500.0,0.00010546,2]
[352481107,1739134261085,-500.0,0.00010546,2]
[352481108,1739134261095,-500.0,0.00010546,2]
[352481109,1739134261104,-606.97,0.00010546,2]
[352481110,1739134261114,-500.0,0.00010546,2]
[352481111,1739134261125,-500.0,0.00010546,2]
[352481112,1739134261135,-500.0,0.00010546,2]
[352481113,1739134261145,-500.0,0.00010547,2]
[352481114,1739134261154,-500.0,0.00010547,2]
[352481115,1739134261164,-500.0,0.00010547,2]
[352481116,1739134261174,-500.0,0.00010547,2]
[352481117,1739134261183,-500.0,0.00010547,2]
[352481118,1739134261193,-500.0,0.00010547,2]
[352481119,1739134261202,-500.0,0.00010547,2]
[352481120,1739134261211,-225.29,0.00010547,2]
[352481121,1739134261221,-500.0,0.00010547,2]
[352481122,1739134261230,-500.0,0.00010547,2]
[352481123,1739134261239,-319.33,0.00010547,2]
[352481124,1739134261248,-500.0,0.00010547,2]
[352481125,1739134261257,-500.0,0.00010547,2]
[352481126,1739134261266,-500.0,0.00010682,2]
[352481127,1739134261275,-500.0,0.00010682,2]
[352481128,1739134261285,-500.0,0.00010682,2]
[352481129,1739134261295,-425.63,0.00010682,2]
[352481130,1739134261307,-500.0,0.00010682,2]
[352481131,1739134261316,-332.19,0.00010682,2]
[352481132,1739134261326,-500.0,0.00010682,2]
[352481133,1739134261335,-313.461372,0.00010682,2]
[352481134,1739134261344,-500.0,0.00010682,2]
[352481135,1739134261354,-500.0,0.00010682,2]
[352481136,1739134261363,-500.0,0.00010682,2]
[352481137,1739134261372,-1319.722916,0.00010683,2]
[352481138,1739134261382,-917.93,0.00010683,2]
[352481139,1739134261391,-530.42,0.00010683,2]
[352481140,1739134261400,-500.0,0.00010683,2]
[352481141,1739134261447,-692.23,0.00010683,2]
[352481142,1739134261457,-500.0,0.00010683,2]
[352481143,1739134261467,-500.0,0.00010683,2]
[352481144,1739134261477,-500.0,0.00010683,2]
[352481145,1739134261486,-500.0,0.00010683,2]
[352481146,1739134261495,-500.0,0.00010683,2]
[352481147,1739134261504,-500.0,0.00010683,2]
[352481148,1739134261514,-500.0,0.00010683,2]
[352481149,1739134261523,-417.59,0.00010683,2]
[352481150,1739134261532,-569.66,0.00010683,2]
[352481151,1739134261541,-623.50170275,0.00010683,2]
[352481152,1739134261550,-500.0,0.00010683,2]
[352481153,1739134261560,-210.81847342,0.00010683,2]
[352481154,1739134261569,-637.9,0.00010683,2]
[352481155,1739134261578,-726.47,0.00010683,2]
[352481156,1739134261588,-653.23,0.00010683,2]
[352481157,1739134261597,-500.0,0.00010683,2]
[352481158,1739134261606,-500.0,0.00010683,2]
[352481159,1739134261615,-500.0,0.00010683,2]
[352481160,1739134261624,-500.0,0.00010683,2]
[352481161,1739134261634,-500.0,0.00010683,2]
[352481162,1739134261643,-500.0,0.00010683,2]
[352481163,1739134261652,-500.0,0.00010683,2]
[352481164,1739134261661,-1352.48,0.00010683,2]
[352481165,1739134261670,-529.76,0.00010683,2]
[352481166,1739134261679,-500.0,0.00010683,2]
[352481167,1739134261689,-663.71,0.00010683,2]
[352481168,1739134261698,-673.8,0.00010683,2]
[352481169,1739134261707,-699.27,0.00010683,2]
[352481170,1739134261718,-974.55,0.00010683,2]
[352481171,1739134261727,-413.19,0.00010683,2]
[352481172,1739134261736,-500.0,0.00010683,2]
[352481173,1739134261745,-1051.01,0.00010683,2]
[352481174,1739134261754,-500.0,0.00010683,2]
[352481175,1739134261764,-500.0,0.00010683,2]
[352481176,1739134261773,-726.4,0.00010683,2]
[352481177,1739134261781,-500.0,0.00010683,2]
[352481178,1739134261791,-500.0,0.00010683,2]
[352481179,1739134261800,-671.52,0.00010683,2]
[352481180,1739134261809,-500.0,0.00010683,2]
[352481181,1739134261818,-500.0,0.00010683,2]
[352481182,1739134261828,-1306.57,0.00010683,2]
[352481183,1739134261838,-500.0,0.00010683,2]
[352481184,1739134261847,-591.07,0.00010683,2]
[352481185,1739134261856,-500.0,0.00010683,2]
[352481186,1739134261865,-640.63,0.00010683,2]
[352481187,1739134261874,-500.0,0.00010683,2]
[352481188,1739134261883,-573.12,0.00010683,2]
[352481189,1739134261892,-500.0,0.00010683,2]
[352481190,1739134261902,-500.0,0.00010683,2]
[352481191,1739134261911,-280.45,0.00010683,2]
[352481192,1739134261920,-500.0,0.00010683,2]
[352481193,1739134261930,-500.0,0.00010683,2]
[352481194,1739134261939,-500.0,0.00010683,2]
[352481195,1739134261948,-500.0,0.00010683,2]
[352481196,1739134261958,-500.0,0.00010683,2]
[352481197,1739134261970,-541.01,0.00010683,2]
[352481198,1739134261979,-500.0,0.00010683,2]
[352481199,1739134261989,-500.0,0.00010683,2]
[352481200,1739134261998,-500.0,0.00010683,2]
[352481201,1739134262008,-500.0,0.00010683,2]
[352481202,1739134262018,-691.26,0.00010683,2]
[352481203,1739134262027,-500.0,0.00010683,2]
[352481204,1739134262038,-500.0,0.00010683,2]
[352481205,1739134262048,-2376.59,0.00010683,2]
[352481206,1739134262058,-783.79,0.00010683,2]
[352481207,1739134262067,-500.0,0.00010683,2]
[352481208,1739134262075,-500.0,0.00010683,2]
[352481209,1739134262084,-500.0,0.00010683,2]
[352481210,1739134262093,-500.0,0.00010683,2]
[352481211,1739134262102,-606.97,0.00010683,2]
[352481212,1739134262112,-500.0,0.00010683,2]
[352481213,1739134262121,-500.0,0.00010683,2]
[352481214,1739134262130,-500.0,0.00010683,2]
[352481215,1739134262139,-370.87,0.00010684,2]
[352481216,1739134262149,-275.56,0.00010684,2]
[352481217,1739134262158,-500.0,0.00010684,2]
[352481218,1739134262167,-500.0,0.00010684,2]
[352481219,1739134262176,-500.0,0.00010684,2]
[352481220,1739134262186,-500.0,0.00010684,2]
[352481221,1739134262195,-500.0,0.00010684,2]
[352481222,1739134262204,-500.0,0.00010684,2]
[352481223,1739134262214,-241.37,0.00010684,2]
[352481224,1739134262223,-500.0,0.00010684,2]
[352481225,1739134262232,-500.0,0.00010684,2]
[352481226,1739134262241,-500.0,0.00010721,2]
[352481227,1739134262250,-576.16809511,0.00010777,2]
[352481228,1739134262259,-500.0,0.00010788,2]
[352481229,1739134262268,-293.24,0.00010819,2]
[352481230,1739134262278,-500.0,0.00010819,2]
[352481231,1739134262287,-243.59,0.00010819,2]
[352481232,1739134262298,-484.7,0.00010819,2]
[352481233,1739134262307,-567.54218337,0.00010819,2]
[352481234,1739134262316,-593.46,0.00010819,2]
[352481235,1739134262326,-544.72,0.00010819,2]
[352481236,1739134262335,-500.0,0.00010819,2]
[352481237,1739134262344,-917.93,0.0001082,2]
[352481238,1739134262353,-500.0,0.0001082,2]
[352481239,1739134262363,-692.23,0.0001082,2]
[352481240,1739134262373,-500.0,0.0001082,2]
[352481241,1739134262382,-500.0,0.0001082,2]
[352481242,1739134262391,-500.0,0.0001082,2]
[352481243,1739134262400,-500.0,0.0001082,2]
[352481244,1739134262410,-500.0,0.0001082,2]
[352481245,1739134262419,-241.56,0.0001082,2]
[352481246,1739134262429,-500.0,0.0001082,2]
[352481247,1739134262438,-726.47,0.0001082,2]
[352481248,1739134262447,-653.23,0.0001082,2]
[352481249,1739134262457,-500.0,0.0001082,2]
[352481250,1739134262466,-500.0,0.0001082,2]
[352481251,1739134262476,-500.0,0.0001082,2]
[352481252,1739134262485,-500.0,0.0001082,2]
[352481253,1739134262494,-500.0,0.0001082,2]
[352481254,1739134262503,-500.0,0.0001082,2]
[352481255,1739134262513,-500.0,0.0001082,2]
[352481256,1739134262523,-1352.48,0.0001082,2]
[352481257,1739134262534,-529.76,0.0001082,2]
[352481258,1739134262543,-500.0,0.0001082,2]
[352481259,1739134262553,-663.71,0.0001082,2]
[352481260,1739134262562,-673.8,0.0001082,2]
[352481261,1739134262572,-699.27,0.0001082,2]
[352481262,1739134262582,-974.55,0.0001082,2]
[352481263,1739134262592,-500.0,0.0001082,2]
[352481264,1739134262602,-1051.01,0.0001082,2]
[352481265,1739134262611,-500.0,0.0001082,2]
[352481266,1739134262621,-500.0,0.0001082,2]
[352481267,1739134262630,-726.4,0.0001082,2]
[352481268,1739134262639,-500.0,0.0001082,2]
[352481269,1739134262649,-500.0,0.0001082,2]
[352481270,1739134262659,-671.52,0.0001082,2]
[352481271,1739134262669,-500.0,0.0001082,2]
[352481272,1739134262678,-500.0,0.0001082,2]
[352481273,1739134262688,-1306.57,0.0001082,2]
[352481274,1739134262697,-500.0,0.0001082,2]
[352481275,1739134262706,-591.07,0.0001082,2]
[352481276,1739134262716,-500.0,0.0001082,2]
[352481277,1739134262728,-640.63,0.0001082,2]
[352481278,1739134262738,-500.0,0.0001082,2]
[352481279,1739134262748,-573.12,0.0001082,2]
[352481280,1739134262757,-500.0,0.0001082,2]
[352481281,1739134262767,-500.0,0.0001082,2]
[352481282,1739134262776,-500.0,0.0001082,2]
[352481283,1739134262786,-500.0,0.0001082,2]
[352481284,1739134262795,-500.0,0.0001082,2]
[352481285,1739134262805,-500.0,0.0001082,2]
[352481286,1739134262814,-500.0,0.0001082,2]
[352481287,1739134262824,-268.79,0.0001082,2]
[352481288,1739134262833,-500.0,0.0001082,2]
[352481289,1739134262843,-500.0,0.0001082,2]
[352481290,1739134262852,-691.26,0.0001082,2]
[352481291,1739134262862,-500.0,0.0001082,2]
[352481292,1739134262871,-500.0,0.0001082,2]
[352481293,1739134262880,-2376.59,0.0001082,2]
[352481294,1739134262890,-783.79,0.0001082,2]
[352481295,1739134262900,-500.0,0.0001082,2]
[352481296,1739134262909,-585.92,0.0001082,2]
[352481297,1739134262919,-500.0,0.0001082,2]
[352481298,1739134262929,-606.97,0.0001082,2]
[352481299,1739134262939,-500.0,0.0001082,2]
[352481300,1739134262948,-500.0,0.0001082,2]
[352481301,1739134262960,-500.0,0.0001082,2]
[352481302,1739134262974,-500.0,0.00010821,2]
[352481303,1739134262984,-500.0,0.00010821,2]
[352481304,1739134262994,-500.0,0.00010821,2]
[352481305,1739134263004,-500.0,0.00010821,2]
[352481306,1739134263013,-320.96,0.00010821,2]
[352481307,1739134263022,-613.05,0.00010821,2]
[352481308,1739134263033,-550.59185138,0.00010821,2]
[352481309,1739134263043,-152.60632037,0.000109,2]
[352481310,1739134263052,-170.29,0.00010956,2]
[352481311,1739134263062,-500.0,0.00010956,2]
[352481312,1739134263073,-917.93,0.00010957,2]
[352481313,1739134263083,-494.14,0.00010957,2]
[352481314,1739134263092,-692.23,0.00010957,2]
[352481315,1739134263102,-264.24,0.00010957,2]
[352481316,1739134263111,-321.28,0.00010957,2]
[352481317,1739134263120,-557.39,0.00010957,2]
[352481318,1739134263130,-633.24,0.00010957,2]
[352481319,1739134263140,-500.0,0.00010957,2]
[352481320,1739134263149,-500.0,0.00010957,2]
[352481321,1739134263159,-726.47,0.00010957,2]
[352481322,1739134263169,-653.23,0.00010957,2]
[352481323,1739134263179,-500.0,0.00010957,2]
[352481324,1739134263189,-500.0,0.00010957,2]
[352481325,1739134263199,-500.0,0.00010957,2]
[352481326,1739134263209,-500.0,0.00010957,2]
[352481327,1739134263222,-500.0,0.00010957,2]
[352481328,1739134263232,-500.0,0.00010957,2]
[352481329,1739134263242,-500.0,0.00010957,2]
[352481330,1739134263252,-1352.48,0.00010957,2]
[352481331,1739134263263,-529.76,0.00010957,2]
[352481332,1739134263272,-500.0,0.00010957,2]
[352481333,1739134263283,-663.71,0.00010957,2]
[352481334,1739134263293,-673.8,0.00010957,2]
[352481335,1739134263303,-699.27,0.00010957,2]
[352481336,1739134263313,-974.55,0.00010957,2]
[352481337,1739134263326,-500.0,0.00010957,2]
[352481338,1739134263335,-1051.01,0.00010957,2]
[352481339,1739134263345,-500.0,0.00010957,2]
[352481340,1739134263354,-500.0,0.00010957,2]
[352481341,1739134263364,-726.4,0.00010957,2]
[352481342,1739134263374,-500.0,0.00010957,2]
[352481343,1739134263383,-500.0,0.00010957,2]
[352481344,1739134263393,-671.52,0.00010957,2]
[352481345,1739134263403,-500.0,0.00010957,2]
[352481346,1739134263413,-500.0,0.00010957,2]
[352481347,1739134263424,-1306.57,0.00010957,2]
[352481348,1739134263435,-500.0,0.00010957,2]
[352481349,1739134263445,-591.07,0.00010957,2]
[352481350,1739134263455,-500.0,0.00010957,2]
[352481351,1739134263464,-640.63,0.00010957,2]
[352481352,1739134263477,-500.0,0.00010957,2]
[352481353,1739134263487,-573.12,0.00010957,2]
[352481354,1739134263496,-500.0,0.00010957,2]
[352481355,1739134263506,-500.0,0.00010957,2]
[352481356,1739134263516,-500.0,0.00010957,2]
[352481357,1739134263527,-500.0,0.00010957,2]
[352481358,1739134263537,-500.0,0.00010957,2]
[352481359,1739134263547,-500.0,0.00010957,2]
[352481360,1739134263559,-500.0,0.00010957,2]
[352481361,1739134263569,-500.0,0.00010957,2]
[352481362,1739134263579,-500.0,0.00010957,2]
[352481363,1739134263589,-691.26,0.00010957,2]
[352481364,1739134263599,-500.0,0.00010957,2]
[352481365,1739134263608,-500.0,0.00010957,2]
[352481366,1739134263618,-2376.59,0.00010957,2]
[352481367,1739134263627,-783.79,0.00010957,2]
[352481368,1739134263637,-500.0,0.00010957,2]
[352481369,1739134263647,-194.07,0.00010957,2]
[352481370,1739134263657,-606.97,0.00010957,2]
[352481371,1739134263667,-500.0,0.00010957,2]
[352481372,1739134263677,-500.0,0.00010957,2]
[352481373,1739134263687,-500.0,0.00010958,2]